Workbook

Sheet Hinweise
C2: Wahlpflichtfächer | I2: (3) 1 | J2: (3) 2 | K2: (2h) 3 | L2: (2v) 4 | M2: (3) 5 | N2: (3) 6 | O2: (2h) 7 | P2: (2h) 8 | AG2: Version 22.02.22
B3: WPF 1 | C3: Wahlpflichtfach 1 | D3: 1 | I3: Profilfach 1 | J3: Profilfach 2 | K3: Profilfach 3 | L3: Profilfach 3 | M3: Profilfach 3 | N3: Profilfach 4 | O3: Profilfach 5 | P3: Profilfach 6
B4: WPF 2 | C4: Wahlpflichtfach 2 | D4: 1 | F4: T | G4: Technik | H4: T | I4: Physik | J4: Technologie | K4: ="-" -> - | L4: ="-" -> - | M4: Chemie | N4: ="-" -> - | O4: Mathe Additum | P4: ="-" -> -
B5: WPF 3 | C5: Wahlpflichtfach 3 | D5: 1 | F5: ABU | G5: Agrar | H5: ABU | I5: Biologie | J5: Chemie | K5: ="-" -> - | L5: ="-" -> - | M5: Physik | N5: ="-" -> - | O5: Technologie | P5: -
B6: Eingabe | C6: Wahlpflichtfach auswählen | D6: 0 | F6: W | G6: Wirtschaft | H6: W | I6: BWR | J6: VWL | K6: ="-" -> - | L6: Rechtslehre | M6: ="-" -> - | N6: - | O6: Naturwissenschaften | P6: Informatik
B7: kein | C7: - | D7: 0 | F7: IW | G7: Int. Wirtschaft | H7: IW | I7: IBV | J7: Franz./Span. | K7: - | L7: Rechtslehre | M7: ="-" -> - | N7: - | O7: Naturwissenschaften | P7: IBS
B8: B-A | C8: Aspekte der Biologie | D8: 1 | F8: S | G8: Sozialwesen | H8: S | I8: Päd./Psy. | J8: Sozialwirtschaft und Recht | K8: - | L8: Chemie | M8: ="-" -> - | N8: - | O8: Biologie | P8: Soziologie
B9: C-A | C9: Aspekte der Chemie | D9: 1 | F9: Gdh | G9: Gesundheit | H9: Gdh | I9: Gesundheitswissenschaften | J9: - | K9: Biologie | L9: ="-" -> - | M9: Kom./Int. | N9: Chemie | O9: ="-" -> - | P9: ="-" -> -
B10: PhA | C10: Aspekte der Physik | D10: 1 | F10: Gst | G10: Gestaltung | H10: Gst | I10: Gestaltung Praxis | J10: Gestaltung Theorie | K10: Naturwissenschaften | L10: ="-" -> - | M10: Medien | N10: - | O10: - | P10: -
B11: PsA | C11: Aspekte der Psychologie | D11: 1
B12: Bte | C12: Biotechnologie | D12: 1
B13: EBC | C13: English Book Club | D13: 1 | I13: Profilfach 1 | J13: Profilfach 2 | M13: Profilfach 3 | N13: Profilfach 3
B14: GEx | C14: Experimentelles Gestalten | D14: 1 | F14: T | G14: Technik | H14: T | I14: Physik | J14: Technologie | M14: Chemie | N14: Mathe Additum
B15: F | C15: Französisch | D15: 1 | F15: ABU | G15: Agrar | H15: ABU | I15: Biologie | J15: Chemie | M15: Physik | N15: Technologie
B16: F-f | C16: Französisch (fortgeführt) | D16: 1 | F16: W | G16: Wirtschaft | H16: W | I16: BWR | J16: VWL | M16: Naturwissenschaften | N16: Informatik
B17: RGw | C17: Gesundheitswirtschaft und Recht | D17: 1 | F17: IW | G17: Int. Wirtschaft | H17: IW | I17: IBV | J17: Franz./Span. | M17: Naturwissenschaften | N17: IBS
B18: Inf | C18: Informatik | D18: 1 | F18: S | G18: Sozialwesen | H18: S | I18: Päd./Psy. | J18: Sozialwirtschaft und Recht | M18: Biologie | N18: Soziologie
B19: IBS | C19: International Business Studies | D19: 1 | F19: Gdh | G19: Gesundheit | H19: Gdh | I19: Gesundheitswissenschaften | J19: Biologie | K19: x | M19: Kom./Int. | N19: Chemie
B20: IPo | C20: Internationale Politik | D20: 1 | F20: Gst | G20: Gestaltung | H20: Gst | I20: Gestaltung Praxis | J20: Gestaltung Theorie | M20: Naturwissenschaften | N20: Medien
B21: It | C21: Italienisch | D21: 1
B22: Ku | C22: Kunst* | D22: 0 | I22: Profilfach 1 | J22: Profilfach 2 | K22: Profilfach 3
B23: L | C23: Latein | D23: 1 | F23: T | G23: Technik | H23: T | I23: Physik | J23: Technologie | K23: Chemie
B24: M+ | C24: Mathematik Additum | D24: 1 | F24: ABU | G24: Agrar | H24: ABU | I24: Biologie | J24: Chemie | K24: Technologie
B25: Mu | C25: Musik* | D25: 0 | F25: W | G25: Wirtschaft | H25: W | I25: BWR | J25: VWL | K25: Naturwissenschaften
B26: Ph+ | C26: Physik (Additum) | D26: 1 | F26: IW | G26: Int. Wirtschaft | H26: IW | I26: IBV | J26: Franz./Span. | K26: Naturwissenschaften
B27: Ru | C27: Russisch | D27: 1 | F27: S | G27: Sozialwesen | H27: S | I27: Päd./Psy. | J27: Sozialwirtschaft und Recht | K27: Biologie
B28: SoP | C28: Sozialpsychologie | D28: 1 | F28: Gdh | G28: Gesundheit | H28: Gdh | I28: Gesundheitswissenschaften | J28: Biologie | K28: Kommunik./Interakt.
B29: Soz | C29: Soziologie | D29: 1 | F29: Gst | G29: Gestaltung | H29: Gst | I29: Gestaltung | J29: Medien | K29: Naturwissenschaften
B30: Sp | C30: Spanisch | D30: 1
B31: Spf | C31: Spanisch (fortgeführt) | D31: 1
B32: SGe | C32: Spektrum der Gesundheit | D32: 1
B33: S | C33: Sport* | D33: 0
B34: S+A | C34: Studier- und Arbeitstechniken* | D34: 0
B35: GSz | C35: Szenisches Gestalten* | D35: 0
B36: WAk | C36: Wirtschaft Aktuell | D36: 1
B37: WR | C37: Wirtschaft und Recht | D37: 1

Sheet FOBOSO §35

Sheet FOBOSO Anlagen

Sheet FOS 12
C2: Abschlussprüfung FOS 12 | H2: Name: _____________________________ | I2: Erika Musterfrau | AI2: =C29 -> Punktezahl Prüfungen (dreifach) | AJ2: =D29 -> 51 | AK2: =F29 -> Anzahl: | AL2: =H29 -> 4
J3: =NOW() -> 2022-12-22T12:27:08.450 | AI3: =C30 -> Punktezahl weiterer 25 HJE | AJ3: =D30 -> 179 | AK3: =F30 -> Anzahl: | AL3: =H30 -> 25
C4: Ausbildungsrichtung: | D4: Wirtschaft | H4: Alle Berechnungen sind rechtlich nicht verbindlich! | AI4: Punktezahl Fachreferat | AJ4: 4
D5: Zu streichende HJE mit x markieren! | R5: =MAX(R7:R24) -> 1 | AE5: =SUM(AE7:AE26) -> 0 | AF5: =COUNT(AF8:AF14) -> 2 | AI5: Punktezahl FPA | AJ5: 12
A6: EB | D6: 11/1 | E6: x | F6: 11/2 | G6: x | H6: 12/1 | I6: x | J6: 12/2 | K6: x | L6: sP | M6: mP | N6: PE | O6: GE | Q6: GE(eingebracht) | R6: Str. | S6: GE | V6: 11/1 | W6: 11/1 einbr | X6: 11/2 | Y6: 11/2 einbr | Z6: 12/1 | AA6: 12/1 einbr | AB6: 12/2 | AC6: 12/2 einbr | AD6: Anzahl | AE6: Anzahl GE(nichtprüfung)<4 | AF6: Anz. mdl. Prfg | AI6: =C33 -> Gesamt: | AJ6: 246
A7: 1 | C7: Religionslehre/Ethik | H7: 15 | J7: 9 | O7: =IF(AND(ISERROR(S7),ISERROR(T7)),"",IF(ISNUMBER(S7),ROUND(S7,0),ROUND(T7,0))) -> 12 | Q7: =IF(A7=1,O7,"") -> 12 | R7: =COUNTIF(D7:K7,"x") -> 0 | S7: =IF(AVERAGE(V7:AB7)<1,0,AVERAGE(V7:AB7)) -> 12 | T7: =IF(AVERAGE(D7:J7)<1,0,AVERAGE(D7:J7)) -> 12 | V7: =IF(AND(ISNUMBER(D7),E7="",$A7=1),D7,"") ->  | X7: =IF(AND(ISNUMBER(F7),G7="",$A7=1),F7,"") ->  | Z7: =IF(AND(ISNUMBER(H7),I7="",$A7=1),H7,"") -> 15 | AB7: =IF(AND(ISNUMBER(J7),K7="",$A7=1),J7,"") -> 9 | AD7: =COUNT(V7:AB7) -> 2 | AE7: =IF(Q7<4,IF(Q7=0,2,1),"") ->  | AI7: =C34 -> Durchschnittsnote: | AJ7: 3.6 | AK7: =F34 -> 3.616666667
A8: 1 | C8: Deutsch | F8: 8 | H8: 5 | J8: 10 | L8: 2 | M8: 4 | N8: =IF(ISBLANK(L8),"",IF(ISBLANK(M8),L8,IF((L8*2+M8)/3<1,0,ROUND((L8*2+M8)/3,0)))) -> 3 | O8: =IF(ISBLANK(L8),"",IF(AND(ISERROR(S8),ISERROR(T8)),"",IF(ISNUMBER(S8),ROUND(S8,0),ROUND(T8,0)))) -> 5 | Q8: 5 | R8: =COUNTIF(D8:K8,"x") -> 0 | S8: =IF((3*N8+SUM(V8:AB8))/(AD8+3)<1,0,(3*N8+SUM(V8:AB8))/(AD8+3)) -> 5.333333333 | T8: =AVERAGE(D8:J8) -> 7.666666667 | X8: 8 | Z8: 5 | AB8: 10 | AD8: =COUNT(V8:AB8) -> 3 | AF8: =IF(M8="","",M8) -> 4 | AI8: Fachabitur: | AJ8: bestanden
A9: 1 | C9: Englisch | F9: 9 | H9: 2 | I9: x | J9: 4 | L9: 6 | M9: 9 | N9: =IF(ISBLANK(L9),"",IF(ISBLANK(M9),L9,IF((L9*2+M9)/3<1,0,ROUND((L9*2+M9)/3,0)))) -> 7 | O9: =IF(ISBLANK(L9),"",IF(AND(ISERROR(S9),ISERROR(T9)),"",IF(ISNUMBER(S9),ROUND(S9,0),ROUND(T9,0)))) -> 7 | Q9: 7 | R9: 1 | S9: =IF((3*N9+SUM(V9:AB9))/(AD9+3)<1,0,(3*N9+SUM(V9:AB9))/(AD9+3)) -> 6.8 | T9: 5 | X9: 9 | AB9: 4 | AD9: 2 | AF9: =IF(M9="","",M9) -> 9 | AI9: Überprüfung nach § 35 (9):
A10: 1 | C10: Mathematik | F10: 5 | H10: 7 | J10: 3 | L10: 3 | N10: =IF(ISBLANK(L10),"",IF(ISBLANK(M10),L10,IF((L10*2+M10)/3<1,0,ROUND((L10*2+M10)/3,0)))) -> 3 | O10: =IF(ISBLANK(L10),"",IF(AND(ISERROR(S10),ISERROR(T10)),"",IF(ISNUMBER(S10),ROUND(S10,0),ROUND(T10,0)))) -> 4 | Q10: 4 | R10: 0 | S10: 4 | T10: 5 | X10: 5 | Z10: 7 | AB10: 3 | AD10: 3 | AI10: =C38 -> Prüfungsergebnisse | AJ10: =D38 -> erfüllt | AK10: <4 | AL10: =N37 -> 2
A11: 1 | C11: Geschichte | D11: 10 | F11: 7 | O11: =IF(AND(ISERROR(S11),ISERROR(T11)),"",IF(ISNUMBER(S11),ROUND(S11,0),ROUND(T11,0))) -> 9 | Q11: 9 | R11: 0 | S11: =IF(AVERAGE(V11:AB11)<1,0,AVERAGE(V11:AB11)) -> 8.5 | T11: =IF(AVERAGE(D11:J11)<1,0,AVERAGE(D11:J11)) -> 8.5 | V11: 10 | X11: 7 | AD11: 2 | AE11: =IF(Q11<4,IF(Q11=0,2,1),"") ->  | AI11: =C39 -> Gesamtergebnisse | AJ11: =D39 -> erfüllt | AK11: <4 | AL11: =M37 -> 0
A12: 1 | C12: Politik und Gesellschaft | H12: 4 | J12: 3 | K12: x | O12: 4 | Q12: 4 | R12: 1 | S12: =IF(AVERAGE(V12:AB12)<1,0,AVERAGE(V12:AB12)) -> 4 | T12: =IF(AVERAGE(D12:J12)<1,0,AVERAGE(D12:J12)) -> 3.5 | Z12: 4 | AD12: 1
A13: 0 | C13: Sport* | H13: 1 | J13: 1 | O13: 1 | R13: 0 | S13: =IF(AVERAGE(V13:AB13)<1,0,AVERAGE(V13:AB13)) ->  | T13: =IF(AVERAGE(D13:J13)<1,0,AVERAGE(D13:J13)) -> 1 | AD13: 0 | AI13: Alle Berechnungen sind rechtlich nicht verbindlich!
A14: =IF(C14="-",0,1) -> 1 | C14: =VLOOKUP($D$4,Hinweise!$G$4:$N$10,3,FALSE) -> BWR | F14: 3 | H14: 3 | I14: x | J14: 8 | L14: 4 | N14: =IF(ISBLANK(L14),"",IF(ISBLANK(M14),L14,IF((L14*2+M14)/3<1,0,ROUND((L14*2+M14)/3,0)))) -> 4 | O14: =IF(ISBLANK(L14),"",IF(AND(ISERROR(S14),ISERROR(T14)),"",IF(ISNUMBER(S14),ROUND(S14,0),ROUND(T14,0)))) -> 5 | Q14: 5 | R14: 1 | S14: =IF((3*N14+SUM(V14:AB14))/(AD14+3)<1,0,(3*N14+SUM(V14:AB14))/(AD14+3)) -> 4.6 | T14: 4.666666667 | X14: 3 | AB14: 8 | AD14: 2
A15: =IF(C15="-",0,1) -> 1 | C15: =VLOOKUP($D$4,Hinweise!$G$4:$N$10,4,FALSE) -> VWL | F15: 3 | G15: x | H15: 8 | J15: 7 | O15: 8 | Q15: 8 | R15: 1 | S15: =IF(AVERAGE(V15:AB15)<1,0,AVERAGE(V15:AB15)) -> 7.5 | T15: =IF(AVERAGE(D15:J15)<1,0,AVERAGE(D15:J15)) -> 6 | Z15: 8 | AB15: 7 | AD15: 2
A16: 0 | C16: =VLOOKUP($D$4,Hinweise!$G$4:$N$10,5,FALSE) -> - | R16: 0 | S16: =IF(AVERAGE(V16:AB16)<1,0,AVERAGE(V16:AB16)) ->  | T16: =IF(AVERAGE(D16:J16)<1,0,AVERAGE(D16:J16)) ->  | AD16: 0
A17: 1 | C17: =VLOOKUP($D$4,Hinweise!$G$4:$N$10,6,FALSE) -> Rechtslehre | D17: 7 | F17: 4 | O17: 6 | Q17: 6 | R17: 0 | S17: 5.5 | T17: 5.5 | V17: 7 | X17: 4 | AD17: 2
A18: 0 | C18: =VLOOKUP($D$4,Hinweise!$G$4:$N$10,7,FALSE) -> - | R18: 0 | AD18: 0
A19: 0 | C19: =VLOOKUP($D$4,Hinweise!$G$4:$P$10,8,FALSE) -> - | R19: 0 | AD19: 0
A20: 1 | C20: =VLOOKUP($D$4,Hinweise!$G$4:$P$10,9,FALSE) -> Naturwissenschaften | H20: 15 | J20: 15 | O20: 15 | Q20: 15 | R20: 0 | S20: 15 | T20: 15 | Z20: 15 | AB20: 15 | AD20: 2
A21: 1 | C21: =VLOOKUP($D$4,Hinweise!$G$4:$P$10,10,FALSE) -> Informatik | H21: 4 | J21: 4 | O21: 4 | Q21: 4 | R21: 0 | S21: 4 | T21: 4 | Z21: 4 | AB21: 4 | AD21: 2
A22: =IF(OR(C22="-",VLOOKUP(C22,Hinweise!$C$6:$D$37,2,FALSE)=0),0,1) -> 1 | C22: Aspekte der Biologie | H22: 3 | J22: 5 | O22: 4 | Q22: 4 | R22: 0 | S22: 4 | T22: 4 | Z22: 3 | AB22: 5 | AD22: 2
A23: =IF(OR(C23="-",VLOOKUP(C23,Hinweise!$C$6:$D$37,2,FALSE)=0),0,1) -> 0 | C23: Musik* | H23: 1 | J23: 6 | O23: 4 | R23: 0 | T23: 3.5 | AD23: 0
A24: =IF(OR(C24="-",VLOOKUP(C24,Hinweise!$C$6:$D$37,2,FALSE)=0),0,1) -> 0 | C24: - | R24: 0 | AD24: 0
A25: 1 | C25: Fachreferat | H25: 4 | O25: =IF(H25="","",H25) -> 4 | Q25: 4 | T25: =IF(A25=0,AVERAGE(D25:J25),"") ->  | AD25: =SUM(AD7:AD24) -> 25
A26: 1 | C26: Fachpraktische Ausbildung | D26: 5 | F26: 7 | O26: =IF(ISERROR(S26),"",IF(S26<1,0,ROUND(S26,0))) -> 6 | Q26: 6 | S26: =AVERAGE(D26:F26) -> 6
C27: * nicht einbringungsfähig | D27: Streichungen überprüfen | M27: =AF5 -> 2
D28: =IF(AE5>=3,"Zur Prüfung nicht zugelassen","") -> 
C29: Punktezahl Prüfungen (dreifach) | D29: =3*SUM(N8:N14) -> 51 | F29: Anzahl: | H29: =U46 -> 4 | L29: HJE | M29: GE | N29: PE | R29: Punkte | S29: Anzahl HJE | T29: Anzahl GE | U29: Anzahl PE
C30: Punktezahl weiterer 25 HJE | D30: =SUM(V7:AC24) -> 179 | F30: Anzahl: | H30: =S46 -> 25 | J30: Anzahl 0: | L30: =S30 -> 0 | M30: =T30 -> 0 | N30: =U30 -> 0 | R30: 0 | S30: =COUNTIF($V$7:$AC$24,R30) -> 0 | T30: =COUNTIF($Q$7:$Q$26,R30) -> 0 | U30: =COUNTIF($N$8:$N$14,R30) -> 0
C31: Punktezahl Fachreferat | D31: =H25 -> 4 | J31: Anzahl 1: | L31: =S31 -> 0 | M31: 0 | N31: 0 | R31: 1 | S31: 0 | T31: =COUNTIF($Q$7:$Q$26,R31) -> 0 | U31: 0
C32: Punktezahl FPA | D32: =D26+F26 -> 12 | J32: Anzahl 2: | L32: 0 | M32: 0 | N32: 0 | R32: 2 | S32: 0 | T32: 0 | U32: 0
C33: Gesamt: | D33: =SUM(D29:D32) -> 246 | J33: Anzahl 3: | L33: 3 | M33: 0 | N33: 2 | R33: 3 | S33: 3 | T33: 0 | U33: 2
C34: Durchschnittsnote: | D34: =IF(D35="bestanden",INT(F34*10)/10,"") -> 3.6 | F34: =17/3-5*D33/600 -> 3.616666667 | J34: Anzahl 4: | L34: 5 | M34: 5 | N34: 1 | R34: 4 | S34: 5 | T34: 5 | U34: 1
C35: Fachabitur: | D35: =IF(AND(G38+G39=2,M27<4),"bestanden","nicht bestanden") -> bestanden | J35: Anzahl 5: | L35: 3 | M35: 2 | N35: 0 | R35: 5 | S35: 3 | T35: 2 | U35: 0
J36: < 4 | L36: =SUM(L30:L33) -> 3 | M36: =SUM(M30:M33) -> 0 | N36: =SUM(N30:N33) -> 2 | R36: 6 | S36: 0 | T36: 2 | U36: 0
C37: Überprüfung nach § 35 (9): | J37: < 4 (gew.): | L37: =2*L30+L31+L32+L33 -> 3 | M37: =2*M30+M31+M32+M33 -> 0 | N37: =2*N30+N31+N32+N33 -> 2 | R37: 7 | S37: 4 | T37: 1 | U37: 1
C38: Prüfungsergebnisse | D38: =IF(AND(N37<3,U46=4),"erfüllt","nicht erfüllt") -> erfüllt | G38: =IF(D38="erfüllt",1,0) -> 1 | R38: 8 | S38: 3 | T38: 1 | U38: 0
C39: Gesamtergebnisse | D39: =IF(H30=25,IF(OR((M37=0),AND(M37=1,D33>=200),AND(M37=2,D33>=240)),"erfüllt","nicht erfüllt")) -> erfüllt | G39: =IF(D39="erfüllt",1,0) -> 1 | R39: 9 | S39: 2 | T39: 1 | U39: 0
R40: 10 | S40: 2 | T40: 0 | U40: 0
E41: =COUNTIF(D38:F40,"nicht erfüllt") -> 0 | R41: 11 | S41: 0 | T41: 0 | U41: 0
C42: Alle Berechnungen sind rechtlich nicht verbindlich! | R42: 12 | S42: 0 | T42: 1 | U42: 0
R43: 13 | S43: 0 | T43: 0 | U43: 0
C44: =Hinweise!AG2 -> Version 22.02.22 | R44: 14 | S44: 0 | T44: 0 | U44: 0
C45: © H. Müller | T. Pickel (VBA) | M. Thoma (Gestaltung) | R45: 15 | S45: 3 | T45: 1 | U45: 0
S46: =SUM(S30:S45) -> 25 | T46: =SUM(T30:T45) -> 14 | U46: =SUM(U30:U45) -> 4

Sheet BOS 12
C2: Abschlussprüfung BOS 12 | H2: Name: _____________________________ | I2: Hans Streichinger | AI2: Punktezahl Prüfungen (zweifach) | AJ2: =D29 -> 46 | AL2: Anzahl: | AM2: =H29 -> 4
J3: =NOW() -> 2022-12-22T12:27:08.450 | AI3: Punktezahl weiterer 17 HJE | AJ3: =D30 -> 102 | AL3: Anzahl: | AM3: =H30 -> 17
C4: Ausbildungsrichtung: | D4: Technik | H4: Alle Berechnungen sind rechtlich nicht verbindlich! | AI4: Punktezahl Fachreferat | AJ4: 4
D5: Zu streichende HJE mit x markieren! | R5: =MAX(R7:R24) -> 1 | AE5: =SUM(AE7:AE25) -> 0 | AF5: =COUNT(AF8:AF14) -> 3 | AI5: Gesamt: | AJ5: =SUM(AJ1:AJ4) -> 152
A6: EB | H6: 12/1 | I6: x | J6: 12/2 | K6: x | L6: sP | M6: mP | N6: PE | O6: GE | Q6: GE(eingebracht) | R6: Str. | S6: GE | V6: 11/1 | W6: 11/1 einbr | X6: 11/2 | Y6: 11/2 einbr | Z6: 12/1 | AA6: 12/1 einbr | AB6: 12/2 | AC6: 12/2 einbr | AD6: Anzahl | AE6: Anzahl<4 Nichtprüfung | AF6: Anz. mdl. Prfg | AI6: Durchschnittsnote: | AJ6: =D34 ->  | AL6: =17/3-5*AJ5/390 -> 3.717948718
A7: 1 | C7: Religionslehre/Ethik | H7: 5 | J7: 5 | O7: =IF(AND(ISERROR(S7),ISERROR(T7)),"",IF(ISNUMBER(S7),ROUND(S7,0),ROUND(T7,0))) -> 5 | Q7: =IF(A7=1,O7,"") -> 5 | R7: =COUNTIF(D7:K7,"x") -> 0 | S7: =IF(AVERAGE(V7:AB7)<1,0,AVERAGE(V7:AB7)) -> 5 | T7: =IF(AVERAGE(D7:J7)<1,0,AVERAGE(D7:J7)) -> 5 | V7: =IF(AND(ISNUMBER(D7),E7="",$A7=1),D7,"") ->  | X7: =IF(AND(ISNUMBER(F7),G7="",$A7=1),F7,"") ->  | Z7: =IF(AND(ISNUMBER(H7),I7="",$A7=1),H7,"") -> 5 | AB7: =IF(AND(ISNUMBER(J7),K7="",$A7=1),J7,"") -> 5 | AD7: =COUNT(V7:AB7) -> 2 | AE7: =IF(Q7="","",IF(Q7<4,IF(Q7=0,2,1),"")) ->  | AI7: Fachabitur: | AJ7: =D35 -> nicht bestanden
A8: 1 | C8: Deutsch | H8: 4 | I8: x | J8: 4 | L8: 3 | N8: =IF(ISBLANK(L8),"",IF(ISBLANK(M8),L8,IF((L8*2+M8)/3<1,0,ROUND((L8*2+M8)/3,0)))) -> 3 | O8: =IF(ISBLANK(L8),"",IF(AND(ISERROR(S8),ISERROR(T8)),"",IF(ISNUMBER(S8),ROUND(S8,0),ROUND(T8,0)))) -> 3 | Q8: 3 | R8: =COUNTIF(D8:K8,"x") -> 1 | S8: =IF((2*N8+SUM(V8:AB8))/(AD8+2)<1,0,(2*N8+SUM(V8:AB8))/(AD8+2)) -> 3.333333333 | T8: =AVERAGE(D8:J8) -> 4 | AB8: 4 | AD8: =COUNT(V8:AB8) -> 1 | AF8: =IF(M8="","",M8) ->  | AI8: Überprüfung nach § 35 (9):
A9: 1 | C9: Englisch | H9: 4 | I9: x | J9: 4 | L9: 3 | M9: 3 | N9: =IF(ISBLANK(L9),"",IF(ISBLANK(M9),L9,IF((L9*2+M9)/3<1,0,ROUND((L9*2+M9)/3,0)))) -> 3 | O9: =IF(ISBLANK(L9),"",IF(AND(ISERROR(S9),ISERROR(T9)),"",IF(ISNUMBER(S9),ROUND(S9,0),ROUND(T9,0)))) -> 3 | Q9: 3 | R9: 1 | S9: =IF((2*N9+SUM(V9:AB9))/(AD9+2)<1,0,(2*N9+SUM(V9:AB9))/(AD9+2)) -> 3.333333333 | T9: 4 | AB9: 4 | AD9: 1 | AF9: =IF(M9="","",M9) -> 3 | AI9: =C38 -> Prüfungsergebnisse | AJ9: =D38 -> erfüllt | AL9: <4 | AM9: =N37 -> 2
A10: 1 | C10: Mathematik | H10: 4 | J10: 4 | L10: 10 | M10: 8 | N10: =IF(ISBLANK(L10),"",IF(ISBLANK(M10),L10,IF((L10*2+M10)/3<1,0,ROUND((L10*2+M10)/3,0)))) -> 9 | O10: 7 | Q10: 7 | R10: 0 | S10: 6.5 | T10: 4 | Z10: 4 | AB10: 4 | AD10: 2 | AF10: 8 | AI10: =C39 -> Gesamtergebnisse | AJ10: =D39 -> nicht erfüllt | AL10: <4 | AM10: =M37 -> 2
A12: 1 | C12: Geschichte, Politik u. Gesellsch. | H12: 4 | I12: x | J12: 4 | O12: =IF(AND(ISERROR(S12),ISERROR(T12)),"",IF(ISNUMBER(S12),ROUND(S12,0),ROUND(T12,0))) -> 4 | Q12: 4 | R12: 1 | S12: =IF(AVERAGE(V12:AB12)<1,0,AVERAGE(V12:AB12)) -> 4 | T12: =IF(AVERAGE(D12:J12)<1,0,AVERAGE(D12:J12)) -> 4 | AB12: 4 | AD12: 1 | AE12: =IF(Q12="","",IF(Q12<4,IF(Q12=0,2,1),"")) ->  | AI12: Alle Berechnungen sind rechtlich nicht verbindlich!
A14: =IF(C14="-",0,1) -> 1 | C14: =VLOOKUP($D$4,Hinweise!$G$14:$N$20,3,FALSE) -> Physik | H14: 4 | J14: 4 | L14: 10 | M14: 4 | N14: =IF(ISBLANK(L14),"",IF(ISBLANK(M14),L14,IF((L14*2+M14)/3<1,0,ROUND((L14*2+M14)/3,0)))) -> 8 | O14: =IF(ISBLANK(L14),"",IF(AND(ISERROR(S14),ISERROR(T14)),"",IF(ISNUMBER(S14),ROUND(S14,0),ROUND(T14,0)))) -> 6 | Q14: 6 | R14: 0 | S14: =IF((2*N14+SUM(V14:AB14))/(AD14+2)<1,0,(2*N14+SUM(V14:AB14))/(AD14+2)) -> 6 | T14: 4 | Z14: 4 | AB14: 4 | AD14: 2 | AF14: 4
A15: =IF(C15="-",0,1) -> 1 | C15: =VLOOKUP($D$4,Hinweise!$G$14:$N$20,4,FALSE) -> Technologie | H15: 5 | J15: 13 | O15: 9 | Q15: 9 | R15: 0 | S15: =IF(AVERAGE(V15:AB15)<1,0,AVERAGE(V15:AB15)) -> 9 | T15: =IF(AVERAGE(D15:J15)<1,0,AVERAGE(D15:J15)) -> 9 | Z15: 5 | AB15: 13 | AD15: 2
A20: 1 | C20: =VLOOKUP($D$4,Hinweise!$G$14:$N$20,7,FALSE) -> Chemie | H20: 8 | J20: 12 | O20: 10 | Q20: 10 | R20: 0 | S20: =IF(AVERAGE(V20:AB20)<1,0,AVERAGE(V20:AB20)) -> 10 | T20: =IF(AVERAGE(D20:J20)<1,0,AVERAGE(D20:J20)) -> 10 | Z20: 8 | AB20: 12 | AD20: 2
A21: 1 | C21: =VLOOKUP($D$4,Hinweise!$G$14:$N$20,8,FALSE) -> Mathe Additum | H21: 5 | J21: 11 | O21: 8 | Q21: 8 | R21: 0 | S21: =IF(AVERAGE(V21:AB21)<1,0,AVERAGE(V21:AB21)) -> 8 | T21: =IF(AVERAGE(D21:J21)<1,0,AVERAGE(D21:J21)) -> 8 | Z21: 5 | AB21: 11 | AD21: 2
A22: =IF(OR(C22="-",VLOOKUP(C22,Hinweise!$C$6:$D$37,2,FALSE)=0),0,1) -> 1 | C22: Aspekte der Biologie | H22: 5 | J22: 5 | O22: 5 | Q22: 5 | R22: 0 | S22: 5 | T22: 5 | Z22: 5 | AB22: 5 | AD22: 2
A23: =IF(OR(C23="-",VLOOKUP(C23,Hinweise!$C$6:$D$37,2,FALSE)=0),0,1) -> 0 | C23: - | R23: 0 | AD23: 0
A25: 1 | C25: Fachreferat | H25: 4 | O25: =IF(H25="","",H25) -> 4 | Q25: 4 | T25: =IF(A25=0,AVERAGE(D25:J25),"") ->  | AD25: =SUM(AD7:AD24) -> 17
C27: * nicht einbringungsfähig | D27: Streichungen überprüfen | M27: =AF5 -> 3
D28: =IF(AE5>2,"Zur Prüfung nicht zugelassen","") -> 
C29: Punktezahl Prüfungen (zweifach) | D29: =2*SUM(N8:N14) -> 46 | F29: Anzahl: | H29: =U46 -> 4 | L29: HJE | M29: GE | N29: PE | R29: Punkte | S29: Anzahl HJE | T29: Anzahl GE | U29: Anzahl PE
C30: Punktezahl weiterer 17 HJE | D30: =SUM(V7:AC24) -> 102 | F30: Anzahl: | H30: =S46 -> 17 | J30: Anzahl 0: | L30: =S30 -> 0 | M30: =T30 -> 0 | N30: =U30 -> 0 | R30: 0 | S30: =COUNTIF($V$7:$AC$24,R30) -> 0 | T30: =COUNTIF($Q$7:$Q$26,R30) -> 0 | U30: =COUNTIF($N$8:$N$14,R30) -> 0
C31: Punktezahl Fachreferat | D31: =H25 -> 4 | J31: Anzahl 1: | L31: =S31 -> 0 | M31: 0 | N31: 0 | R31: 1 | S31: 0 | T31: =COUNTIF($Q$7:$Q$26,R31) -> 0 | U31: 0
J32: Anzahl 2: | L32: 0 | M32: 0 | N32: 0 | R32: 2 | S32: 0 | T32: 0 | U32: 0
C33: Gesamt: | D33: =SUM(D29:D32) -> 152 | J33: Anzahl 3: | L33: 0 | M33: 2 | N33: 2 | R33: 3 | S33: 0 | T33: 2 | U33: 2
C34: Durchschnittsnote: | D34: =IF(D35="bestanden",INT(F34*10)/10,"") ->  | F34: =17/3-5*D33/390 -> 3.717948718 | J34: Anzahl 4: | L34: 7 | M34: 2 | N34: 0 | R34: 4 | S34: 7 | T34: 2 | U34: 0
C35: Fachabitur: | D35: =IF(AND(E41=0,H30=17,U46=4,M27<4),"bestanden","nicht bestanden") -> nicht bestanden | J35: Anzahl 5: | L35: 6 | M35: 2 | N35: 0 | R35: 5 | S35: 6 | T35: 2 | U35: 0
J36: < 4 | L36: =SUM(L30:L33) -> 0 | M36: =SUM(M30:M33) -> 2 | N36: =SUM(N30:N33) -> 2 | R36: 6 | S36: 0 | T36: 1 | U36: 0
C37: Überprüfung nach § 35 (9) | J37: < 4 (gew.): | L37: =2*L30+L31+L32+L33 -> 0 | M37: =2*M30+M31+M32+M33 -> 2 | N37: =2*N30+N31+N32+N33 -> 2 | R37: 7 | S37: 0 | T37: 1 | U37: 0
C38: Prüfungsergebnisse | D38: =IF(AND(N37<3,U46=4),"erfüllt","nicht erfüllt") -> erfüllt | R38: 8 | S38: 1 | T38: 1 | U38: 1
C39: Gesamtergebnisse | D39: =IF(H30=17,IF(OR((M37=0),AND(M37=1,D33>=130),AND(M37=2,D33>=156)),"erfüllt","nicht erfüllt")) -> nicht erfüllt | R39: 9 | S39: 0 | T39: 1 | U39: 1
R40: 10 | S40: 0 | T40: 1 | U40: 0
E41: =COUNTIF(D38:F40,"nicht erfüllt") -> 1 | R41: 11 | S41: 1 | T41: 0 | U41: 0
C42: Alle Berechnungen sind rechtlich nicht verbindlich! | R42: 12 | S42: 1 | T42: 0 | U42: 0
R43: 13 | S43: 1 | T43: 0 | U43: 0
C44: ='FOS 12'!C44 -> Version 22.02.22 | R44: 14 | S44: 0 | T44: 0 | U44: 0
C45: © H. Müller | T. Pickel (VBA) | M. Thoma (Gestaltung) | R45: 15 | S45: 0 | T45: 0 | U45: 0
S46: =SUM(S30:S45) -> 17 | T46: =SUM(T30:T45) -> 11 | U46: =SUM(U30:U45) -> 4

Sheet FOSBOS 13-1
C2: Abschlussprüfung ABITUR | H2: Name: _____________________________ | I2: Hans Streichinger | AI2: =C29 -> Punktezahl Prüfungen (2-fach) | AJ2: =D29 -> 78 | AL2: Anzahl: | AM2: =H29 -> 4
J3: =NOW() -> 2022-12-22T12:27:08.450 | AI3: =C30 -> Punktezahl weiterer 16 HJE | AJ3: =D30 -> 80 | AL3: Anzahl: | AM3: =H30 -> 16
C4: Ausbildungsrichtung: | D4: Sozialwesen | H4: Alle Berechnungen sind rechtlich nicht verbindlich! | AI4: Punktezahl Seminararbeit (2-fach) | AJ4: 2
D5: Zu streichende HJE mit x markieren! | R5: =MAX(R7:R24) -> 1 | AE5: =SUM(AE7:AE25) -> 2 | AF5: =COUNT(AF8:AF14) -> 3 | AI5: Gesamt: | AJ5: =SUM(AJ1:AJ4) -> 160
A6: EB | D6: 12/1 | F6: 12/2 | H6: 13/1 | I6: x | J6: 13/2 | K6: x | L6: sP | M6: mP | N6: PE | O6: GE | Q6: GE(eingebracht) | R6: Str. | S6: GE | U6: Sprache | V6: =D6 -> 12/1 | X6: =F6 -> 12/2 | Z6: =H6 -> 13/1 | AB6: =J6 -> 13/2 | AD6: Anzahl | AE6: Anzahl<4 Nichtprüfung | AF6: Anz. mdl. Prfg | AI6: Durchschnittsnote: | AJ6: =D34 -> 3.6 | AL6: =17/3-5*AJ5/390 -> 3.615384615
A7: 1 | C7: Religionslehre/Ethik | H7: 4 | J7: 3 | K7: x | O7: =IF(AND(ISERROR(S7),ISERROR(T7)),"",IF(ISNUMBER(S7),ROUND(S7,0),ROUND(T7,0))) -> 4 | Q7: =IF(A7=1,O7,"") -> 4 | R7: =COUNTIF(D7:K7,"x") -> 1 | S7: =IF(AVERAGE(V7:AB7)<1,0,AVERAGE(V7:AB7)) -> 4 | T7: =IF(AVERAGE(D7:J7)<1,0,AVERAGE(D7:J7)) -> 3.5 | V7: =IF(AND(ISNUMBER(D7),E7="",$A7=1),D7,"") ->  | X7: =IF(AND(ISNUMBER(F7),G7="",$A7=1),F7,"") ->  | Z7: =IF(AND(ISNUMBER(H7),I7="",$A7=1),H7,"") -> 4 | AB7: =IF(AND(ISNUMBER(J7),K7="",$A7=1),J7,"") ->  | AD7: =COUNT(V7:AB7) -> 1 | AE7: =IF(Q7="","",IF(Q7<4,IF(Q7=0,2,1),"")) ->  | AI7: =C35 -> Abitur (allgemein) | AJ7: =D35 -> bestanden
A8: 1 | C8: Deutsch | H8: 4 | J8: 5 | L8: 10 | N8: =IF(ISBLANK(L8),"",IF(ISBLANK(M8),L8,IF((L8*2+M8)/3<1,0,ROUND((L8*2+M8)/3,0)))) -> 10 | O8: =IF(ISBLANK(L8),"",IF(AND(ISERROR(S8),ISERROR(T8)),"",IF(ISNUMBER(S8),ROUND(S8,0),ROUND(T8,0)))) -> 7 | Q8: 7 | R8: =COUNTIF(D8:K8,"x") -> 0 | S8: =IF((2*N8+SUM(V8:AB8))/(AD8+2)<1,0,(2*N8+SUM(V8:AB8))/(AD8+2)) -> 7.25 | T8: =AVERAGE(D8:J8) -> 4.5 | Z8: 4 | AB8: 5 | AD8: =COUNT(V8:AB8) -> 2 | AF8: =IF(M8="","",M8) ->  | AI8: Überprüfung nach § 35 (9):
A9: 1 | C9: Englisch | H9: 4 | J9: 4 | L9: 12 | M9: 9 | N9: =IF(ISBLANK(L9),"",IF(ISBLANK(M9),L9,IF((L9*2+M9)/3<1,0,ROUND((L9*2+M9)/3,0)))) -> 11 | O9: =IF(ISBLANK(L9),"",IF(AND(ISERROR(S9),ISERROR(T9)),"",IF(ISNUMBER(S9),ROUND(S9,0),ROUND(T9,0)))) -> 8 | Q9: 8 | R9: 0 | S9: =IF((2*N9+SUM(V9:AB9))/(AD9+2)<1,0,(2*N9+SUM(V9:AB9))/(AD9+2)) -> 7.5 | T9: 4 | Z9: 4 | AB9: 4 | AD9: 2 | AF9: =IF(M9="","",M9) -> 9 | AI9: =C38 -> Prüfungsergebnisse | AJ9: =D38 -> erfüllt | AL9: <4 | AM9: =N37 -> 0
A10: 1 | C10: Mathematik | H10: 4 | J10: 4 | L10: 10 | M10: 10 | N10: =IF(ISBLANK(L10),"",IF(ISBLANK(M10),L10,IF((L10*2+M10)/3<1,0,ROUND((L10*2+M10)/3,0)))) -> 10 | O10: 7 | Q10: 7 | R10: 0 | S10: 7 | T10: 4 | Z10: 4 | AB10: 4 | AD10: 2 | AF10: 10 | AI10: =C39 -> Gesamtergebnisse | AJ10: =D39 -> erfüllt | AL10: <4 | AM10: =M37 -> 2
A12: 1 | C12: Geschichte, Politik und Gesellschaft | H12: 4 | J12: 5 | O12: =IF(AND(ISERROR(S12),ISERROR(T12)),"",IF(ISNUMBER(S12),ROUND(S12,0),ROUND(T12,0))) -> 5 | Q12: 5 | R12: 0 | S12: =IF(AVERAGE(V12:AB12)<1,0,AVERAGE(V12:AB12)) -> 4.5 | T12: =IF(AVERAGE(D12:J12)<1,0,AVERAGE(D12:J12)) -> 4.5 | Z12: 4 | AB12: 5 | AD12: 2 | AE12: =IF(Q12="","",IF(Q12<4,IF(Q12=0,2,1),"")) ->  | AI12: Alle Berechnungen sind rechtlich nicht verbindlich!
A14: =IF(C14="-",0,1) -> 1 | C14: =VLOOKUP($D$4,Hinweise!$G$23:$N$29,3,FALSE) -> Päd./Psy. | H14: 4 | J14: 4 | L14: 10 | M14: 3 | N14: =IF(ISBLANK(L14),"",IF(ISBLANK(M14),L14,IF((L14*2+M14)/3<1,0,ROUND((L14*2+M14)/3,0)))) -> 8 | O14: =IF(ISBLANK(L14),"",IF(AND(ISERROR(S14),ISERROR(T14)),"",IF(ISNUMBER(S14),ROUND(S14,0),ROUND(T14,0)))) -> 6 | Q14: 6 | R14: 0 | S14: =IF((2*N14+SUM(V14:AB14))/(AD14+2)<1,0,(2*N14+SUM(V14:AB14))/(AD14+2)) -> 6 | T14: 4 | Z14: 4 | AB14: 4 | AD14: 2 | AF14: 3
A15: =IF(C15="-",0,1) -> 1 | C15: =VLOOKUP($D$4,Hinweise!$G$23:$N$29,4,FALSE) -> Sozialwirtschaft und Recht | H15: 3 | J15: 3 | O15: 3 | Q15: 3 | R15: 0 | S15: =IF(AVERAGE(V15:AB15)<1,0,AVERAGE(V15:AB15)) -> 3 | T15: =IF(AVERAGE(D15:J15)<1,0,AVERAGE(D15:J15)) -> 3 | U15: =IF(AND((_xlfn.NUMBERVALUE(AB15)>=4),(O15>=4),(AD15=2),(C15="Franz./Span.")),1,0) -> 0 | Z15: 3 | AB15: 3 | AD15: 2 | AE15: 1
A20: 1 | C20: =VLOOKUP($D$4,Hinweise!$G$23:$N$29,5,FALSE) -> Biologie | H20: 1 | I20: x | J20: 8 | O20: 8 | Q20: 8 | R20: 1 | S20: =IF(AVERAGE(V20:AB20)<1,0,AVERAGE(V20:AB20)) -> 8 | T20: =IF(AVERAGE(D20:J20)<1,0,AVERAGE(D20:J20)) -> 4.5 | AB20: 8 | AD20: 1
A21: 1
A22: =IF(OR(C22="-",VLOOKUP(C22,Hinweise!$C$6:$D$37,2,FALSE)=0),0,1) -> 1 | C22: Spanisch | H22: 10 | J22: 10 | O22: 10 | Q22: 10 | R22: 0 | S22: =IF(AVERAGE(V22:AB22)<1,0,AVERAGE(V22:AB22)) -> 10 | T22: =IF(AVERAGE(D22:J22)<1,0,AVERAGE(D22:J22)) -> 10 | U22: =IF(AND((_xlfn.NUMBERVALUE(AB22)>=4),(O22>=4),(AD22=2),(OR(C22="Spanisch (fortgeführt)",C22="Spanisch",C22="Französisch",C22="Französisch (fortgeführt)"))),1,0) -> 1 | Z22: 10 | AB22: 10 | AD22: 2
A23: =IF(OR(C23="-",VLOOKUP(C23,Hinweise!$C$6:$D$37,2,FALSE)=0),0,1) -> 0 | C23: - | R23: 0 | AD23: 0
A25: 1 | C25: Seminararbeit | H25: 1 | O25: =IF(H25="","",H25) -> 1 | Q25: 1 | T25: =IF(A25=0,AVERAGE(D25:J25),"") ->  | AD25: =SUM(AD7:AD24) -> 16 | AE25: 1
C27: * nicht einbringungsfähig | D27: Streichungen überprüfen | M27: =AF5 -> 3
D28: =IF(OR(H25=0,AE5>2),"Zur Prüfung nicht zugelassen","") -> 
C29: Punktezahl Prüfungen (2-fach) | D29: =2*SUM(N8:N14) -> 78 | F29: Anzahl: | H29: =U46 -> 4 | L29: HJE | M29: GE | N29: PE | R29: Punkte | S29: Anzahl HJE | T29: Anzahl GE | U29: Anzahl PE
C30: Punktezahl weiterer 16 HJE | D30: =SUM(V7:AC24) -> 80 | F30: Anzahl: | H30: =S46 -> 16 | J30: Anzahl 0: | L30: =S30 -> 0 | M30: =T30 -> 0 | N30: =U30 -> 0 | R30: 0 | S30: =COUNTIF($V$7:$AC$24,R30) -> 0 | T30: =COUNTIF($Q$7:$Q$26,R30) -> 0 | U30: =COUNTIF($N$8:$N$14,R30) -> 0
C31: Punktezahl Seminararbeit (2-fach) | D31: =H25*2 -> 2 | J31: Anzahl 1: | L31: =S31 -> 0 | M31: 1 | N31: 0 | R31: 1 | S31: 0 | T31: =COUNTIF($Q$7:$Q$26,R31) -> 1 | U31: 0
J32: Anzahl 2: | L32: 0 | M32: 0 | N32: 0 | R32: 2 | S32: 0 | T32: 0 | U32: 0
C33: Gesamt: | D33: =SUM(D29:D32) -> 160 | F33: von 390 | J33: Anzahl 3: | L33: 2 | M33: 1 | N33: 0 | R33: 3 | S33: 2 | T33: 1 | U33: 0
C34: Durchschnittsnote: | D34: =IF(D35="bestanden",INT(F34*10)/10,"") -> 3.6 | F34: =17/3-5*D33/390 -> 3.615384615 | J34: Anzahl 4: | L34: 9 | M34: 1 | N34: 0 | R34: 4 | S34: 9 | T34: 1 | U34: 0
C35: =IF(SUM(U15+U22)>0,"Abitur (allgemein)","Abitur (fachgebunden)") -> Abitur (allgemein) | D35: =IF(AND(E41=0,H30=16,U46=4,H25>0,M27<4),"bestanden","nicht bestanden") -> bestanden | J35: Anzahl 5: | L35: 2 | M35: 1 | N35: 0 | R35: 5 | S35: 2 | T35: 1 | U35: 0
J36: < 4 | L36: =SUM(L30:L33) -> 2 | M36: =SUM(M30:M33) -> 2 | N36: =SUM(N30:N33) -> 0 | R36: 6 | S36: 0 | T36: 1 | U36: 0
C37: Überprüfung nach § 35 (9) | J37: < 4 (gew.): | L37: =2*L30+L31+L32+L33 -> 2 | M37: =2*M30+M31+M32+M33 -> 2 | N37: =2*N30+N31+N32+N33 -> 0 | R37: 7 | S37: 0 | T37: 2 | U37: 0
C38: Prüfungsergebnisse | D38: =IF(AND(N30=0,N37<3,U46=4),"erfüllt","nicht erfüllt") -> erfüllt | R38: 8 | S38: 1 | T38: 2 | U38: 1
C39: Gesamtergebnisse | D39: =IF(H30=16,IF(OR((M37=0),AND(M37=1,D33>=130),AND(M37=2,D33>=156)),"erfüllt","nicht erfüllt")) -> erfüllt | R39: 9 | S39: 0 | T39: 0 | U39: 0
R40: 10 | S40: 2 | T40: 1 | U40: 2
E41: =COUNTIF(D38:F40,"nicht erfüllt") -> 0 | R41: 11 | S41: 0 | T41: 0 | U41: 1
C42: Alle Berechnungen sind rechtlich nicht verbindlich! | R42: 12 | S42: 0 | T42: 0 | U42: 0
R43: 13 | S43: 0 | T43: 0 | U43: 0
C44: ='FOS 12'!C44 -> Version 22.02.22 | R44: 14 | S44: 0 | T44: 0 | U44: 0
C45: © H. Müller | T. Pickel (VBA) | M. Thoma (Gestaltung) | R45: 15 | S45: 0 | T45: 0 | U45: 0
S46: =SUM(S30:S45) -> 16 | T46: =SUM(T30:T45) -> 10 | U46: =SUM(U30:U45) -> 4

Sheet FOSBOS 13-2
AI1: =C31 -> Punktezahl Prüfungen (2-fach) | AJ1: =D31 -> 52 | AL1: Anzahl: | AM1: =H31 -> 4
C2: Abschlussprüfung ABITUR | H2: Name: _____________________________ | I2: Hans Streichinger | AI2: =C32 -> Punktezahl weiterer 16 HJE | AJ2: =D32+D34 -> 64 | AL2: Anzahl: | AM2: =H32 -> 18
J3: =NOW() -> 2022-12-22T12:27:08.450 | AI3: Punktezahl Seminararbeit (2-fach) | AJ3: =D33 -> 8
C4: Ausbildungsrichtung: | D4: Technik | H4: Alle Berechnungen sind rechtlich nicht verbindlich! | AI4: Zweite Fremdsprache: | AJ4: =D34 -> 2
D5: Zu streichende HJE mit x markieren! | R5: =MAX(R7:R24) -> 1 | AE5: =SUM(AE7:AE25) -> 0 | AF5: =COUNT(AF8:AF14) -> 2 | AI5: Gesamt: | AJ5: =D35 -> 124 | AL5: von 420
A6: EB | D6: 12/1 | F6: 12/2 | H6: 13/1 | I6: x | J6: 13/2 | K6: x | L6: sP | M6: mP | N6: PE | O6: GE | Q6: GE(eingebracht) | R6: Str. | S6: GE | U6: Sprache | V6: 12/1 | X6: 12/2 | Z6: 13/1 | AB6: 13/2 | AD6: Anzahl | AE6: Anzahl<4 Nichtprüfung | AF6: Anz. mdl. Prfg | AI6: Durchschnittsnote: | AJ6: =D36 -> 4.1 | AL6: =17/3-5*AJ5/390 -> 4.076923077
A7: 1 | C7: Religionslehre/Ethik | H7: 4 | J7: 3 | O7: =IF(AND(ISERROR(S7),ISERROR(T7)),"",IF(ISNUMBER(S7),ROUND(S7,0),ROUND(T7,0))) -> 4 | Q7: =IF(A7=1,O7,"") -> 4 | R7: =COUNTIF(D7:K7,"x") -> 0 | S7: =IF(AVERAGE(V7:AB7)<1,0,AVERAGE(V7:AB7)) -> 3.5 | T7: =IF(AVERAGE(D7:J7)<1,0,AVERAGE(D7:J7)) -> 3.5 | V7: =IF(AND(ISNUMBER(D7),E7="",$A7=1),D7,"") ->  | X7: =IF(AND(ISNUMBER(F7),G7="",$A7=1),F7,"") ->  | Z7: =IF(AND(ISNUMBER(H7),I7="",$A7=1),H7,"") -> 4 | AB7: =IF(AND(ISNUMBER(J7),K7="",$A7=1),J7,"") -> 3 | AD7: =COUNT(V7:AB7) -> 2 | AE7: =IF(Q7="","",IF(Q7<4,IF(Q7=0,2,1),"")) ->  | AI7: =C37 -> Abitur (fachgebunden) | AJ7: =D37 -> bestanden
A8: 1 | C8: Deutsch | H8: 4 | I8: x | J8: 5 | L8: 6 | N8: =IF(ISBLANK(L8),"",IF(ISBLANK(M8),L8,IF((L8*2+M8)/3<1,0,ROUND((L8*2+M8)/3,0)))) -> 6 | O8: =IF(ISBLANK(L8),"",IF(AND(ISERROR(S8),ISERROR(T8)),"",IF(ISNUMBER(S8),ROUND(S8,0),ROUND(T8,0)))) -> 6 | Q8: 6 | R8: =COUNTIF(D8:K8,"x") -> 1 | S8: =IF((2*N8+SUM(V8:AB8))/(AD8+2)<1,0,(2*N8+SUM(V8:AB8))/(AD8+2)) -> 5.666666667 | T8: =AVERAGE(D8:J8) -> 4.5 | AB8: 5 | AD8: =COUNT(V8:AB8) -> 1 | AF8: =IF(M8="","",M8) ->  | AI8: Überprüfung nach § 35 (9):
A9: 1 | C9: Englisch | H9: 4 | J9: 4 | L9: 5 | M9: 4 | N9: =IF(ISBLANK(L9),"",IF(ISBLANK(M9),L9,IF((L9*2+M9)/3<1,0,ROUND((L9*2+M9)/3,0)))) -> 5 | O9: =IF(ISBLANK(L9),"",IF(AND(ISERROR(S9),ISERROR(T9)),"",IF(ISNUMBER(S9),ROUND(S9,0),ROUND(T9,0)))) -> 5 | Q9: 5 | R9: 0 | S9: =IF((2*N9+SUM(V9:AB9))/(AD9+2)<1,0,(2*N9+SUM(V9:AB9))/(AD9+2)) -> 4.5 | T9: 4 | Z9: 4 | AB9: 4 | AD9: 2 | AF9: =IF(M9="","",M9) -> 4 | AI9: =C40 -> Prüfungsergebnisse | AJ9: =D40 -> erfüllt | AL9: <4 | AM9: =N39 -> 0
A10: 1 | C10: Mathematik | H10: 4 | J10: 4 | L10: 9 | N10: =IF(ISBLANK(L10),"",IF(ISBLANK(M10),L10,IF((L10*2+M10)/3<1,0,ROUND((L10*2+M10)/3,0)))) -> 9 | O10: 7 | Q10: 7 | R10: 0 | S10: 6.5 | T10: 4 | Z10: 4 | AB10: 4 | AD10: 2 | AI10: =C41 -> Gesamtergebnisse | AJ10: =D41 -> erfüllt | AL10: <4 | AM10: =M39 -> 0
A12: 1 | C12: Geschichte, Politik und Gesellschaft | H12: 4 | J12: 3 | O12: =IF(AND(ISERROR(S12),ISERROR(T12)),"",IF(ISNUMBER(S12),ROUND(S12,0),ROUND(T12,0))) -> 4 | Q12: 4 | R12: 0 | S12: =IF(AVERAGE(V12:AB12)<1,0,AVERAGE(V12:AB12)) -> 3.5 | T12: =IF(AVERAGE(D12:J12)<1,0,AVERAGE(D12:J12)) -> 3.5 | Z12: 4 | AB12: 3 | AD12: 2 | AE12: =IF(Q12="","",IF(Q12<4,IF(Q12=0,2,1),"")) ->  | AI12: Alle Berechnungen sind rechtlich nicht verbindlich!
A14: =IF(C14="-",0,1) -> 1 | C14: =VLOOKUP($D$4,Hinweise!$G$23:$N$29,3,FALSE) -> Physik | H14: 4 | J14: 4 | L14: 8 | M14: 3 | N14: =IF(ISBLANK(L14),"",IF(ISBLANK(M14),L14,IF((L14*2+M14)/3<1,0,ROUND((L14*2+M14)/3,0)))) -> 6 | O14: =IF(ISBLANK(L14),"",IF(AND(ISERROR(S14),ISERROR(T14)),"",IF(ISNUMBER(S14),ROUND(S14,0),ROUND(T14,0)))) -> 5 | Q14: 5 | R14: 0 | S14: =IF((2*N14+SUM(V14:AB14))/(AD14+2)<1,0,(2*N14+SUM(V14:AB14))/(AD14+2)) -> 5 | T14: 4 | Z14: 4 | AB14: 4 | AD14: 2 | AF14: 3
A15: =IF(C15="-",0,1) -> 1 | C15: =VLOOKUP($D$4,Hinweise!$G$23:$N$29,4,FALSE) -> Technologie | H15: 3 | J15: 4 | O15: 4 | Q15: 4 | R15: 0 | S15: =IF(AVERAGE(V15:AB15)<1,0,AVERAGE(V15:AB15)) -> 3.5 | T15: =IF(AVERAGE(D15:J15)<1,0,AVERAGE(D15:J15)) -> 3.5 | U15: =IF(AND((_xlfn.NUMBERVALUE(AB15)>=4),(O15>=4),(AD15=2),(C15="Franz./Span.")),1,0) -> 0 | Z15: 3 | AB15: 4 | AD15: 2
A20: 1 | C20: =VLOOKUP($D$4,Hinweise!$G$23:$N$29,5,FALSE) -> Chemie | H20: 1 | I20: x | J20: 4 | O20: 4 | Q20: 4 | R20: 1 | S20: =IF(AVERAGE(V20:AB20)<1,0,AVERAGE(V20:AB20)) -> 4 | T20: =IF(AVERAGE(D20:J20)<1,0,AVERAGE(D20:J20)) -> 2.5 | AB20: 4 | AD20: 1
A21: 1
A22: =IF(OR(C22="-",VLOOKUP(C22,Hinweise!$C$6:$D$37,2,FALSE)=0),0,1) -> 1 | C22: Informatik | H22: 4 | J22: 4 | O22: 4 | Q22: 4 | R22: 0 | S22: =IF(AVERAGE(V22:AB22)<1,0,AVERAGE(V22:AB22)) -> 4 | T22: =IF(AVERAGE(D22:J22)<1,0,AVERAGE(D22:J22)) -> 4 | U22: =IF(AND((_xlfn.NUMBERVALUE(AB22)>=4),(O22>=4),(AD22=2),(OR(C22="Spanisch (fortgeführt)",C22="Französisch (fortgeführt)"))),1,0) -> 0 | Z22: 4 | AB22: 4 | AD22: 2
A23: =IF(OR(C23="-",VLOOKUP(C23,Hinweise!$C$6:$D$37,2,FALSE)=0),0,1) -> 0 | C23: - | R23: 0 | AD23: 0
A25: 1 | C25: Seminararbeit | H25: 4 | O25: =IF(H25="","",H25) -> 4 | Q25: 4 | T25: =IF(A25=0,AVERAGE(D25:J25),"") ->  | AD25: =SUM(AD7:AD24) -> 16
C27: * nicht einbringungsfähig | D27: Streichungen überprüfen | M27: =AF5 -> 2
D28: =IF(OR(AE5>2,H25=0),"Zur Prüfung nicht zugelassen","") -> 
A29: 1 | C29: Franz./Span. (fortgeführt) | D29: 1 | F29: 1 | O29: =IF(AND(ISERROR(S29),ISERROR(T29)),"",IF(ISNUMBER(S29),ROUND(S29,0),ROUND(T29,0))) -> 1 | Q29: =IF(A29=1,O29,"") -> 1 | R29: =COUNTIF(D29:K29,"x") -> 0 | S29: =IF(AVERAGE(V29:AB29)<1,0,AVERAGE(V29:AB29)) -> 1 | T29: =IF(AVERAGE(D29:J29)<1,0,AVERAGE(D29:J29)) -> 1 | U29: =IF(AND((_xlfn.NUMBERVALUE(X29)>=4),(AD29=2),(O29>=4)),1,0) -> 0 | V29: =IF(AND(ISNUMBER(D29),E29="",$A29=1),D29,"") -> 1 | X29: =IF(AND(ISNUMBER(F29),G29="",$A29=1),F29,"") -> 1 | AD29: =COUNT(V29:AB29) -> 2
C31: Punktezahl Prüfungen (2-fach) | D31: =2*SUM(N8:N14) -> 52 | F31: Anzahl: | H31: =U48 -> 4 | L31: HJE | M31: GE | N31: PE | R31: Punkte | S31: Anzahl HJE | T31: Anzahl GE | U31: Anzahl PE
C32: Punktezahl weiterer 16 HJE | D32: =SUM(V7:AC24) -> 62 | F32: Anzahl: | H32: =S48 -> 18 | J32: Anzahl 0: | L32: =S32 -> 0 | M32: =T32 -> 0 | N32: =U32 -> 0 | R32: 0 | S32: =COUNTIF($V$7:$AC$29,R32) -> 0 | T32: =COUNTIF($Q$7:$Q$26,R32) -> 0 | U32: =COUNTIF($N$8:$N$14,R32) -> 0
C33: Punktezahl Seminararbeit (2-fach) | D33: =H25*2 -> 8 | J33: Anzahl 1: | L33: =S33 -> 2 | M33: 0 | N33: 0 | R33: 1 | S33: =COUNTIF($V$7:$AC$29,R33) -> 2 | T33: =COUNTIF($Q$7:$Q$26,R33) -> 0 | U33: 0
C34: Zweite Fremdsprache: | D34: =D29+F29 -> 2 | J34: Anzahl 2: | L34: 0 | M34: 0 | N34: 0 | R34: 2 | S34: 0 | T34: 0 | U34: 0
C35: Gesamt: | D35: =SUM(D31:D34) -> 124 | F35: von 420 | J35: Anzahl 3: | L35: 3 | M35: 0 | N35: 0 | R35: 3 | S35: 3 | T35: 0 | U35: 0
C36: Durchschnittsnote: | D36: =IF(D37="bestanden",INT(F36*10)/10,"") -> 4.1 | F36: =17/3-5*D35/420 -> 4.19047619 | J36: Anzahl 4: | L36: 12 | M36: 6 | N36: 0 | R36: 4 | S36: 12 | T36: 6 | U36: 0
C37: =IF(SUM(U15+U22+U29)>0,"Abitur (allgemein)","Abitur (fachgebunden)") -> Abitur (fachgebunden) | D37: =IF(AND(E43=0,H32=18,U48=4,H25>0,M27<4),"bestanden","nicht bestanden") -> bestanden | J37: Anzahl 5: | L37: 1 | M37: 2 | N37: 1 | R37: 5 | S37: 1 | T37: 2 | U37: 1
J38: < 4 | L38: =SUM(L32:L35) -> 5 | M38: =SUM(M32:M35) -> 0 | N38: =SUM(N32:N35) -> 0 | R38: 6 | S38: 0 | T38: 1 | U38: 2
C39: Überprüfung nach § 35 (9) | J39: < 4 (gew.): | L39: =2*L32+L33+L34+L35 -> 5 | M39: =2*M32+M33+M34+M35 -> 0 | N39: =2*N32+N33+N34+N35 -> 0 | R39: 7 | S39: 0 | T39: 1 | U39: 0
C40: Prüfungsergebnisse | D40: =IF(AND(N32=0,N39<3,U48=4),"erfüllt","nicht erfüllt") -> erfüllt | R40: 8 | S40: 0 | T40: 0 | U40: 0
C41: Gesamtergebnisse | D41: =IF(H32=18,IF(OR((M39=0),AND(M39=1,D35>=140),AND(M39=2,D35>=168)),"erfüllt","nicht erfüllt")) -> erfüllt | R41: 9 | S41: 0 | T41: 0 | U41: 1
R42: 10 | S42: 0 | T42: 0 | U42: 0
E43: =COUNTIF(D40:F42,"nicht erfüllt") -> 0 | R43: 11 | S43: 0 | T43: 0 | U43: 0
C44: Alle Berechnungen sind rechtlich nicht verbindlich! | R44: 12 | S44: 0 | T44: 0 | U44: 0
R45: 13 | S45: 0 | T45: 0 | U45: 0
C46: ='FOS 12'!C44 -> Version 22.02.22 | R46: 14 | S46: 0 | T46: 0 | U46: 0
C47: © H. Müller | T. Pickel (VBA) | M. Thoma (Gestaltung) | R47: 15 | S47: 0 | T47: 0 | U47: 0
S48: =SUM(S32:S47) -> 18 | T48: =SUM(T32:T47) -> 10 | U48: =SUM(U32:U47) -> 4

Sheet FOSBOS 13-3
AI1: =C31 -> Punktezahl Prüfungen (2-fach) | AJ1: 64 | AL1: Anzahl: | AM1: =H31 -> 4
C2: Abschlussprüfung ABITUR | H2: Name: _____________________________ | I2: Hans Streichinger | AI2: Punktezahl weiterer 16 HJE | AJ2: 91 | AL2: Anzahl: | AM2: =H32 -> 16
J3: =NOW() -> 2022-12-22T12:27:08.450 | AI3: Punktezahl Seminararbeit (2-fach) | AJ3: 10
C4: Ausbildungsrichtung: | D4: Technik | H4: Alle Berechnungen sind rechtlich nicht verbindlich! | AI4: Ergänzngsprüfung 2. Fremdsprache
D5: Zu streichende HJE mit x markieren! | R5: =MAX(R7:R24) -> 1 | AE5: =SUM(AE7:AE25) -> 0 | AF5: =COUNT(AF8:AF14) -> 3 | AI5: Gesamt: | AJ5: =D35 -> 165 | AL5: =F35 -> von 420
A6: EB | D6: 12/1 | F6: 12/2 | H6: 13/1 | I6: x | J6: 13/2 | K6: x | L6: sP | M6: mP | N6: PE | O6: GE | Q6: GE(eingebracht) | R6: Str. | S6: GE | U6: Sprache | V6: 12/1 | X6: 12/2 | Z6: 13/1 | AB6: 13/2 | AD6: Anzahl | AE6: Anzahl<4 Nichtprüfung | AF6: Anz. mdl. Prfg | AI6: Durchschnittsnote: | AJ6: =D36 ->  | AL6: =F36 -> 3.702380952
A7: 1 | C7: Religionslehre/Ethik | H7: 12 | J7: 10 | O7: =IF(AND(ISERROR(S7),ISERROR(T7)),"",IF(ISNUMBER(S7),ROUND(S7,0),ROUND(T7,0))) -> 11 | Q7: =IF(A7=1,O7,"") -> 11 | R7: =COUNTIF(D7:K7,"x") -> 0 | S7: =IF(AVERAGE(V7:AB7)<1,0,AVERAGE(V7:AB7)) -> 11 | T7: =IF(AVERAGE(D7:J7)<1,0,AVERAGE(D7:J7)) -> 11 | V7: =IF(AND(ISNUMBER(D7),E7="",$A7=1),D7,"") ->  | X7: =IF(AND(ISNUMBER(F7),G7="",$A7=1),F7,"") ->  | Z7: =IF(AND(ISNUMBER(H7),I7="",$A7=1),H7,"") -> 12 | AB7: =IF(AND(ISNUMBER(J7),K7="",$A7=1),J7,"") -> 10 | AD7: =COUNT(V7:AB7) -> 2 | AE7: =IF(Q7="","",IF(Q7<4,IF(Q7=0,2,1),"")) ->  | AI7: =C37 -> Abitur (allgemein) | AJ7: =D37 -> nicht bestanden
A8: 1 | C8: Deutsch | H8: 4 | I8: x | J8: 4 | L8: 8 | M8: 8 | N8: =IF(ISBLANK(L8),"",IF(ISBLANK(M8),L8,IF((L8*2+M8)/3<1,0,ROUND((L8*2+M8)/3,0)))) -> 8 | O8: =IF(ISBLANK(L8),"",IF(AND(ISERROR(S8),ISERROR(T8)),"",IF(ISNUMBER(S8),ROUND(S8,0),ROUND(T8,0)))) -> 7 | Q8: 7 | R8: =COUNTIF(D8:K8,"x") -> 1 | S8: =IF((2*N8+SUM(V8:AB8))/(AD8+2)<1,0,(2*N8+SUM(V8:AB8))/(AD8+2)) -> 6.666666667 | T8: =AVERAGE(D8:J8) -> 4 | AB8: 4 | AD8: =COUNT(V8:AB8) -> 1 | AF8: =IF(M8="","",M8) -> 8 | AI8: Überprüfung nach § 35 (9):
A9: 1 | C9: Englisch | H9: 4 | J9: 4 | L9: 12 | M9: 4 | N9: =IF(ISBLANK(L9),"",IF(ISBLANK(M9),L9,IF((L9*2+M9)/3<1,0,ROUND((L9*2+M9)/3,0)))) -> 9 | O9: =IF(ISBLANK(L9),"",IF(AND(ISERROR(S9),ISERROR(T9)),"",IF(ISNUMBER(S9),ROUND(S9,0),ROUND(T9,0)))) -> 7 | Q9: 7 | R9: 0 | S9: =IF((2*N9+SUM(V9:AB9))/(AD9+2)<1,0,(2*N9+SUM(V9:AB9))/(AD9+2)) -> 6.5 | T9: 4 | Z9: 4 | AB9: 4 | AD9: 2 | AF9: =IF(M9="","",M9) -> 4 | AI9: =C40 -> Prüfungsergebnisse | AJ9: =D40 -> erfüllt | AL9: <4 | AM9: =N39 -> 0
A10: 1 | C10: Mathematik | H10: 4 | J10: 4 | L10: 10 | N10: =IF(ISBLANK(L10),"",IF(ISBLANK(M10),L10,IF((L10*2+M10)/3<1,0,ROUND((L10*2+M10)/3,0)))) -> 10 | O10: 7 | Q10: 7 | R10: 0 | S10: 7 | T10: 4 | Z10: 4 | AB10: 4 | AD10: 2 | AI10: =C41 -> Gesamtergebnisse | AJ10: =D41 -> erfüllt | AL10: <4 | AM10: =M39 -> 0
A12: 1 | C12: Geschichte, Politik und Gesellschaft | H12: 12 | J12: 10 | O12: =IF(AND(ISERROR(S12),ISERROR(T12)),"",IF(ISNUMBER(S12),ROUND(S12,0),ROUND(T12,0))) -> 11 | Q12: 11 | R12: 0 | S12: =IF(AVERAGE(V12:AB12)<1,0,AVERAGE(V12:AB12)) -> 11 | T12: =IF(AVERAGE(D12:J12)<1,0,AVERAGE(D12:J12)) -> 11 | Z12: 12 | AB12: 10 | AD12: 2 | AE12: =IF(Q12="","",IF(Q12<4,IF(Q12=0,2,1),"")) ->  | AI12: Alle Berechnungen sind rechtlich nicht verbindlich!
A14: =IF(C14="-",0,1) -> 1 | C14: =VLOOKUP($D$4,Hinweise!$G$23:$N$29,3,FALSE) -> Physik | H14: 4 | J14: 4 | L14: 5 | M14: 5 | N14: =IF(ISBLANK(L14),"",IF(ISBLANK(M14),L14,IF((L14*2+M14)/3<1,0,ROUND((L14*2+M14)/3,0)))) -> 5 | O14: =IF(ISBLANK(L14),"",IF(AND(ISERROR(S14),ISERROR(T14)),"",IF(ISNUMBER(S14),ROUND(S14,0),ROUND(T14,0)))) -> 5 | Q14: 5 | R14: 0 | S14: =IF((2*N14+SUM(V14:AB14))/(AD14+2)<1,0,(2*N14+SUM(V14:AB14))/(AD14+2)) -> 4.5 | T14: 4 | Z14: 4 | AB14: 4 | AD14: 2 | AF14: 5
A15: =IF(C15="-",0,1) -> 1 | C15: =VLOOKUP($D$4,Hinweise!$G$23:$N$29,4,FALSE) -> Technologie | H15: 3 | J15: 4 | O15: 4 | Q15: 4 | R15: 0 | S15: =IF(AVERAGE(V15:AB15)<1,0,AVERAGE(V15:AB15)) -> 3.5 | T15: =IF(AVERAGE(D15:J15)<1,0,AVERAGE(D15:J15)) -> 3.5 | U15: =IF(AND((_xlfn.NUMBERVALUE(AB15)>=4),(O15>=4),(AD15=2),(C15="Franz./Span.")),1,0) -> 0 | Z15: 3 | AB15: 4 | AD15: 2
A20: 1 | C20: =VLOOKUP($D$4,Hinweise!$G$23:$N$29,5,FALSE) -> Chemie | H20: 1 | I20: x | J20: 4 | O20: 4 | Q20: 4 | R20: 1 | S20: =IF(AVERAGE(V20:AB20)<1,0,AVERAGE(V20:AB20)) -> 4 | T20: =IF(AVERAGE(D20:J20)<1,0,AVERAGE(D20:J20)) -> 2.5 | AB20: 4 | AD20: 1
A21: 1
A22: =IF(OR(C22="-",VLOOKUP(C22,Hinweise!$C$6:$D$37,2,FALSE)=0),0,1) -> 1 | C22: Informatik | H22: 4 | J22: 4 | O22: 4 | Q22: 4 | R22: 0 | S22: =IF(AVERAGE(V22:AB22)<1,0,AVERAGE(V22:AB22)) -> 4 | T22: =IF(AVERAGE(D22:J22)<1,0,AVERAGE(D22:J22)) -> 4 | U22: =IF(AND((_xlfn.NUMBERVALUE(AB22)>=4),(O22>=4),(AD22=2),(OR(C22="Spanisch (fortgeführt)",C22="Französisch (fortgeführt)"))),1,0) -> 0 | Z22: 4 | AB22: 4 | AD22: 2
A23: =IF(OR(C23="-",VLOOKUP(C23,Hinweise!$C$6:$D$37,2,FALSE)=0),0,1) -> 0 | C23: - | R23: 0 | AD23: 0
A25: 1 | C25: Seminararbeit | H25: 5 | O25: =IF(H25="","",H25) -> 5 | Q25: 5 | T25: =IF(A25=0,AVERAGE(D25:J25),"") ->  | AD25: =SUM(AD7:AD24) -> 16
C27: * nicht einbringungsfähig | D27: Streichungen überprüfen | M27: =AF5 -> 3
D28: =IF(OR(H25=0,AE5>2),"Zur Prüfung nicht zugelassen","") -> 
A29: 1 | C29: Ergänzungsprüfung 2. Fremdsprache | D29: =IF(N29="","unvollständig",IF(O29<4,"nicht bestanden","bestanden")) -> unvollständig | L29: 4 | N29: =IF(OR(ISBLANK(L29),ISBLANK(M29)),"",IF(ISBLANK(M29),L29,IF((L29*2+M29)/3<1,0,ROUND((L29*2+M29)/3,0)))) ->  | O29: =N29 ->  | Q29: =IF(A29=1,O29,"") ->  | R29: =COUNTIF(D29:K29,"x") -> 0 | S29: =IF(AVERAGE(V29:AB29)<1,0,AVERAGE(V29:AB29)) ->  | T29: =IF(AVERAGE(D29:J29)<1,0,AVERAGE(D29:J29)) ->  | U29: =IF(AND(ISNUMBER(O29),O29>=4),1,0) -> 0 | V29: =IF(AND(ISNUMBER(D29),E29="",$A29=1),D29,"") ->  | X29: =IF(AND(ISNUMBER(F29),G29="",$A29=1),F29,"") ->  | AD29: =COUNT(V29:AB29) -> 0
C31: Punktezahl Prüfungen (2-fach) | D31: =2*SUM(N8:N14) -> 64 | F31: Anzahl: | H31: =U48 -> 4 | L31: HJE | M31: GE | N31: PE | R31: Punkte | S31: Anzahl HJE | T31: Anzahl GE | U31: Anzahl PE
C32: Punktezahl weiterer 16 HJE | D32: =SUM(V7:AC24) -> 91 | F32: Anzahl: | H32: =S48 -> 16 | J32: Anzahl 0: | L32: =S32 -> 0 | M32: =T32 -> 0 | N32: =U32 -> 0 | R32: 0 | S32: =COUNTIF($V$7:$AC$24,R32) -> 0 | T32: =COUNTIF($Q$7:$Q$26,R32) -> 0 | U32: =COUNTIF($N$8:$N$25,R32) -> 0
C33: Punktezahl Seminararbeit (2-fach) | D33: =H25*2 -> 10 | J33: Anzahl 1: | L33: =S33 -> 0 | M33: 0 | N33: 0 | R33: 1 | S33: 0 | T33: =COUNTIF($Q$7:$Q$26,R33) -> 0 | U33: =COUNTIF($N$8:$N$25,R33) -> 0
C34: Ergänzngsprüfung 2. Fremdsprache | D34: =IF(U29=1,N29*2,"") ->  | J34: Anzahl 2: | L34: 0 | M34: 0 | N34: 0 | R34: 2 | S34: 0 | T34: 0 | U34: 0
C35: Gesamt: | D35: =SUM(D31:D34) -> 165 | F35: von 420 | J35: Anzahl 3: | L35: 1 | M35: 0 | N35: 0 | R35: 3 | S35: 1 | T35: 0 | U35: 0
C36: Durchschnittsnote: | D36: =IF(D37="bestanden",INT(F36*10)/10,"") ->  | F36: =17/3-5*D35/420 -> 3.702380952 | J36: Anzahl 4: | L36: 11 | M36: 3 | N36: 0 | R36: 4 | S36: 11 | T36: 3 | U36: 0
C37: =IF(SUM(U15+U22+1)>0,"Abitur (allgemein)","Abitur (fachgebunden)") -> Abitur (allgemein) | D37: =IF(AND(U29=1,E43=0,H32=16,U48=4,H25>0,M27<4),"bestanden","nicht bestanden") -> nicht bestanden | J37: Anzahl 5: | L37: 0 | M37: 2 | N37: 1 | R37: 5 | S37: 0 | T37: 2 | U37: 1
J38: < 4 | L38: =SUM(L32:L35) -> 1 | M38: =SUM(M32:M35) -> 0 | N38: =SUM(N32:N35) -> 0 | R38: 6 | S38: 0 | T38: 0 | U38: 0
C39: Überprüfung nach § 35 (9) | J39: < 4 (gew.): | L39: =2*L32+L33+L34+L35 -> 1 | M39: =2*M32+M33+M34+M35 -> 0 | N39: =2*N32+N33+N34+N35 -> 0 | R39: 7 | S39: 0 | T39: 3 | U39: 0
C40: Prüfungsergebnisse | D40: =IF(AND(N32=0,N39<3,U48=4),"erfüllt","nicht erfüllt") -> erfüllt | R40: 8 | S40: 0 | T40: 0 | U40: 1
C41: Gesamtergebnisse | D41: =IF(H32=16,IF(OR((M39=0),AND(M39=1,D35>=140),AND(M39=2,D35>=168)),"erfüllt","nicht erfüllt")) -> erfüllt | R41: 9 | S41: 0 | T41: 0 | U41: 1
R42: 10 | S42: 2 | T42: 0 | U42: 1
E43: =COUNTIF(D40:F42,"nicht erfüllt") -> 0 | R43: 11 | S43: 0 | T43: 2 | U43: 0
C44: Alle Berechnungen sind rechtlich nicht verbindlich! | R44: 12 | S44: 2 | T44: 0 | U44: 0
R45: 13 | S45: 0 | T45: 0 | U45: 0
C46: ='FOS 12'!C44 -> Version 22.02.22 | R46: 14 | S46: 0 | T46: 0 | U46: 0
C47: © H. Müller | T. Pickel (VBA) | M. Thoma (Gestaltung) | R47: 15 | S47: 0 | T47: 0 | U47: 0
S48: =SUM(S32:S47) -> 16 | T48: =SUM(T32:T47) -> 10 | U48: =SUM(U32:U47) -> 4
